fUSD/lending_fUSD_20240328
["ID","MTS","AMOUNT","RATE_DAILY","PERIOD"]
[320854025,1711636240302,-500.0,0.00040631,31]
[320854026,1711636240312,-500.0,0.00040631,31]
[320854027,1711636240322,-500.0,0.00040631,31]
[320854028,1711636240331,-500.0,0.00040631,31]
[320854029,1711636240341,-500.0,0.00040631,31]
[320854030,1711636240350,-489.70518496,0.00040631,31]
[320854031,1711636240360,-500.0,0.00040631,31]
[320854032,1711636240370,-500.0,0.00040631,31]
[320854033,1711636240380,-500.0,0.00040631,31]
[320854034,1711636240389,-151.17363347,0.00040632,9]
[320854035,1711636240399,-456.96682674,0.00040632,2]
[320854037,1711636240408,-325.53992742,0.00040632,2]
[320854039,1711636240417,-1580.28825326,0.00040632,2]
[320854041,1711636240427,-896.1841308,0.00040632,2]
[320854043,1711636240436,-2696.22743964,0.00040632,14]
[320854045,1711636240447,-3538.09764858,0.00040632,2]
[320854047,1711636240457,-245000.0,0.00040632,2]
[320854049,1711636240467,-1000.0,0.00040632,2]
[320854051,1711636240478,-9940.0605,0.00040632,2]
[320854053,1711636240488,-1000.0,0.00040632,2]
[320854055,1711636240498,-2500.0,0.00040632,2]
[320854057,1711636240508,-1300.0,0.000407,14]
[320854059,1711636240517,-1521.40228,0.000407,34]
[320854061,1711636240526,-396.906104,0.000407,2]
[320854063,1711636240536,-150.5,0.00040702,15]
[320854065,1711636240545,-941.0,0.00040702,15]
[320854067,1711636240555,-867.0,0.00040702,15]
[320854069,1711636240564,-269.0,0.00040702,15]
[320854071,1711636240574,-150.5,0.00040712,15]
[320854073,1711636240584,-150.5,0.00040712,15]
[320854075,1711636240593,-941.0,0.00040712,15]
[320854077,1711636240603,-867.0,0.00040712,15]
[320854080,1711636240613,-150.5,0.00040712,15]
[320854081,1711636240623,-800.0,0.00040712,2]
[320854084,1711636240633,-150.5,0.00040722,15]
[320854086,1711636240643,-150.5,0.00040722,15]
[320854088,1711636240654,-150.5,0.00040722,15]
[320854090,1711636240665,-941.0,0.00040722,15]
[320854092,1711636240677,-867.0,0.00040722,15]
[320854094,1711636240687,-150.5,0.00040722,15]
[320854096,1711636240700,-192.94649433,0.00040722,2]
[320854098,1711636240712,-192.16115415,0.00040726,2]
[320854100,1711636240721,-155.0,0.0004073,4]
[320854102,1711636240731,-1439.8176489,0.0004073,4]
[320854104,1711636240740,-431.24989399,0.0004073,4]
[320854106,1711636240750,-278.87520748,0.0004073,4]
[320854108,1711636240761,-637.09034613,0.0004073,4]
[320854110,1711636240771,-780.72902429,0.0004073,4]
[320854112,1711636240781,-222.91387717,0.0004073,4]
[320854114,1711636240790,-294.74242493,0.0004073,4]
[320854116,1711636240800,-216.72363676,0.0004073,4]
[320854118,1711636240811,-485.53986145,0.0004073,4]
[320854120,1711636240821,-1619.86802675,0.0004073,4]
[320854122,1711636240831,-265.84716785,0.0004073,4]
[320854124,1711636240842,-1414.27711435,0.0004073,4]
[320854126,1711636240852,-155.0,0.0004073,4]
[320854128,1711636240862,-360.37934819,0.0004073,4]
[320854130,1711636240872,-164.43636222,0.0004073,4]
[320854132,1711636240883,-173.79229338,0.0004073,4]
[320854134,1711636240893,-1237.04750438,0.0004073,4]
[320854136,1711636240903,-1224.29001584,0.0004073,4]
[320854138,1711636240912,-155.59692827,0.0004073,4]
[320854140,1711636240921,-155.46650762,0.0004073,4]
[320854142,1711636240931,-155.48082072,0.0004073,4]
[320854144,1711636240940,-155.0,0.0004073,4]
[320854146,1711636240952,-250.434515,0.0004073,4]
[320854148,1711636240961,-310.74502783,0.0004073,4]
[320854150,1711636240971,-2164.86870334,0.0004073,4]
[320854152,1711636240980,-344.8818256,0.0004073,4]
[320854154,1711636240990,-246.28480066,0.0004073,4]
[320854156,1711636240999,-853.09544767,0.0004073,4]
[320854159,1711636241009,-447.5715316,0.0004073,4]
[320854160,1711636241019,-263.54107721,0.0004073,4]
[320854163,1711636241029,-236.3331456,0.0004073,2]
[320854165,1711636241038,-1036.7288987,0.0004073,4]
[320854166,1711636241049,-155.0,0.0004073,4]
[320854169,1711636241059,-206.40440117,0.0004073,4]
[320854170,1711636241069,-265.89599496,0.0004073,4]
[320854172,1711636241079,-398.88781664,0.0004073,4]
[320854174,1711636241089,-203.03498527,0.0004073,4]
[320854176,1711636241098,-1000.0,0.00040731,2]
[320854178,1711636241108,-150.0,0.00040731,7]
[320854179,1711636241117,-150.0,0.00040731,7]
[320854180,1711636241127,-350.65617138,0.00040731,4]
[320854181,1711636241136,-500.0,0.00040731,31]
[320854182,1711636241145,-363.22524146,0.00040731,31]
[320854183,1711636241155,-189.39287305,0.00040731,31]
[320854184,1711636241164,-390.35618141,0.00040731,31]
[320854185,1711636241173,-500.0,0.00040731,31]
[320854186,1711636241182,-195.76579786,0.00040731,31]
[320854187,1711636241191,-2749.00483996,0.00040732,2]
[320854188,1711636241203,-1210.0,0.00040732,2]
[320854189,1711636241212,-2139.49913933,0.00040732,2]
[320854190,1711636241221,-337.52687858,0.00040732,2]
[320854191,1711636241230,-2914.39985488,0.00040732,2]
[320854192,1711636241239,-164.75920827,0.00040732,7]
[320854193,1711636241248,-4665.95481232,0.00040732,2]
[320854194,1711636241257,-220.97271784,0.00040732,2]
[320854195,1711636241267,-357.85312753,0.00040732,2]
[320854196,1711636241277,-1473.75326778,0.00040732,2]
[320854197,1711636241287,-7146.0463026,0.00040732,2]
[320854198,1711636241296,-12090.29402765,0.00040732,2]
[320854199,1711636241306,-10370.9547726,0.00040732,2]
[320854200,1711636241315,-5025.41536296,0.00040732,2]
[320854201,1711636241324,-52773.49574755,0.00040732,10]
[320854202,1711636241334,-2649.80487734,0.00040732,2]
[320854203,1711636241343,-2379.00108062,0.00040732,2]
[320854204,1711636241353,-5434.83255304,0.00040732,2]
[320854205,1711636241363,-133129.32686514,0.00040732,2]
[320854206,1711636241372,-3148.06330151,0.00040732,2]
[320854207,1711636241381,-10097.20577127,0.00040732,2]
[320854208,1711636241390,-158.94844474,0.00040732,2]
[320854209,1711636241399,-22100.42233229,0.00040732,2]
[320854210,1711636241408,-14666.12304901,0.00040732,2]
[320854211,1711636241417,-7481.88458713,0.00040732,2]
[320854212,1711636241426,-1035.77955741,0.00040732,2]
[320854213,1711636241436,-5785.25084701,0.00040732,2]
[320854214,1711636241447,-175.12653546,0.00040732,2]
[320854215,1711636241462,-57267.63183095,0.00040732,2]
[320854216,1711636241609,-4005.09330883,0.00040732,2]
[320854217,1711636241619,-842.99895412,0.00040732,2]
[320854218,1711636241628,-1013.17949294,0.00040732,2]
[320854219,1711636241639,-185.0326691,0.00040732,2]
[320854220,1711636241649,-434.2530689,0.00040732,2]
[320854221,1711636241662,-841.16506851,0.00040732,2]
[320854222,1711636241822,171.57521,0.00040732,120]
[320854225,1711636242946,-228.65,0.00039728,2]
[320854226,1711636242956,-6319.8079825,0.00040732,2]
[320854227,1711636243178,-70840.00000001,0.00040732,2]
[320854228,1711636243353,-6003.68600152,0.00040732,2]
[320854229,1711636243411,-5201.08787856,0.00040732,2]
[320854230,1711636243421,-3150.7328021,0.00040732,2]
[320854232,1711636246128,-1634.74316224,0.00034393,4]
[320854233,1711636246138,-588.3012773,0.0004,120]
[320854234,1711636246148,-235.57035527,0.00040731,4]
[320854235,1711636246158,-5798.48718343,0.00040732,2]
[320854236,1711636246168,-1270.85690239,0.00040732,2]
[320854237,1711636246177,-4715.79996892,0.00040732,2]
[320854238,1711636246240,-75.48066666,0.00040732,2]
[320854239,1711636246249,-920.79442975,0.00040732,2]
[320854240,1711636246275,-2711.24654864,0.00040732,2]
[320854241,1711636246284,-477.4992642,0.00040732,2]
[320854242,1711636246294,-1571.24044974,0.00040732,10]
[320854243,1711636246318,-2487.32836811,0.00040732,10]
[320854244,1711636246330,-741.43118215,0.00040732,10]
[320854245,1711636246339,-7192.96362875,0.00040732,2]
[320854246,1711636246349,-21987.72271057,0.00040732,2]
[320854247,1711636246359,-12445.38474617,0.00040732,2]
[320854248,1711636246370,-1863.08867267,0.00040732,2]
[320854249,1711636246379,-13956.61677599,0.00040732,3]
[320854250,1711636246390,-643.0,0.00040732,2]
[320854251,1711636246399,-4000.0,0.00040732,3]
[320854253,1711636246410,-940.61071284,0.00040732,2]
[320854255,1711636246420,-9023.08921827,0.00040732,2]
[320854257,1711636246430,-555.57597832,0.00040732,2]
[320854259,1711636246440,-100000.0,0.00040732,2]
[320854261,1711636246450,-1782.09376197,0.00040732,2]
[320854263,1711636246459,-16243.68458746,0.00040732,2]
[320854265,1711636246469,-169.29498039,0.00040732,2]
[320854267,1711636246478,-6617.6525078,0.00040732,2]
[320854269,1711636246488,-550.0,0.00040732,2]
[320854271,1711636246500,-977.46606588,0.00040732,2]
[320854273,1711636246509,-10387.63368634,0.00040732,2]
[320854276,1711636246519,-500.39420621,0.00040732,2]
[320854278,1711636246529,-72816.26362914,0.00040732,2]
[320854280,1711636246542,-406.42949022,0.00040732,2]
[320854283,1711636246563,-299.33406665,0.00040732,2]
[320854293,1711636317871,10254.771,0.00040732,120]
[320854294,1711636438851,152.30107004,0.00040727,36]
[320854295,1711636439561,152.30107004,0.00040727,36]
[320854296,1711636440557,152.30107004,0.00040727,36]
[320854297,1711636441288,152.30107004,0.00040727,36]
[320854298,1711636442019,152.30107004,0.00040727,36]
[320854306,1711637035991,152.30107004,0.00040724,36]
[320854307,1711637036891,152.30107004,0.00040724,36]
[320854308,1711637037691,152.30107004,0.00040724,36]
[320854309,1711637038564,152.30107004,0.00040724,36]
[320854322,1711637432160,-362.30988045,0.00030543,4]
[320854323,1711637432171,-2165.87510659,0.00030543,4]
[320854324,1711637432180,-164.25883871,0.00030755,2]
[320854325,1711637432189,-230.89,0.00030855,2]
[320854326,1711637432199,-550.0,0.00031,3]
[320854327,1711637432208,-164.25883869,0.00032729,2]
[320854328,1711637432218,-600.0,0.00033,3]
[320854329,1711637432227,-150.0,0.00034548,10]
[320854330,1711637432236,-164.25883869,0.00034703,2]
[320854331,1711637432245,-650.0,0.00035,3]
[320854332,1711637432254,-743.8,0.00036634,2]
[320854333,1711637432263,-155.0,0.00036657,4]
[320854334,1711637432273,-164.25883869,0.00036677,2]
[320854335,1711637432282,-700.0,0.00037,3]
[320854336,1711637432291,-150.0,0.0003839,2]
[320854337,1711637432303,-266.87,0.0003839,2]
[320854338,1711637432313,-150.99,0.0003839,2]
[320854339,1711637432322,-990.71,0.0003839,20]
[320854340,1711637432331,-499.99,0.0003839,2]
[320854341,1711637432341,-150.99,0.0003839,10]
[320854342,1711637432350,-444.26,0.0003839,2]
[320854343,1711637432360,-173.6,0.00038448,120]
[320854344,1711637432369,-782.83,0.00038535,2]
[320854345,1711637432378,-598.99,0.00038537,2]
[320854346,1711637432389,-381.69,0.00038555,15]
[320854347,1711637432398,-227.74,0.00038564,2]
[320854348,1711637432407,-250.0,0.00038566,2]
[320854349,1711637432417,-150.0,0.00038568,4]
[320854350,1711637432426,-416.22,0.00038569,2]
[320854351,1711637432436,-250.0,0.00038569,2]
[320854352,1711637432445,-2522.51,0.00038585,2]
[320854353,1711637432455,-20011.75,0.00038593,2]
[320854354,1711637432468,-150.0,0.00038593,2]
[320854355,1711637432478,-3053.84,0.00038593,2]
[320854356,1711637432487,-299.28,0.00038605,2]
[320854357,1711637432497,-504.9,0.0003861,2]
[320854358,1711637432506,-4223.05,0.00038628,2]
[320854359,1711637432515,-2913.04,0.00038648,2]
[320854360,1711637432525,-696.01391568,0.00038694,4]
[320854361,1711637432535,-363.77,0.00038742,2]
[320854362,1711637432545,-250.0,0.00038763,112]
[320854363,1711637432554,-243.92,0.00038814,2]
[320854364,1711637432564,-212.82,0.0003886,2]
[320854365,1711637432573,-743.8,0.00038897,2]
[320854366,1711637432583,-4719.92,0.00038976,2]
[320854367,1711637432594,-750.0,0.00039,3]
[320854368,1711637432604,-172.37,0.00039269,120]
[320854369,1711637432614,-150.0,0.00039416,2]
[320854370,1711637432625,-731.18,0.00039759,2]
[320854371,1711637432636,-731.18,0.0003977,2]
[320854372,1711637432646,-731.18,0.0003978,2]
[320854373,1711637432655,-731.18,0.00039791,2]
[320854374,1711637432664,-731.18,0.00039801,2]
[320854375,1711637432673,-731.18,0.00039812,2]
[320854376,1711637432683,-173.6,0.00039818,120]
[320854377,1711637432693,-731.18,0.00039822,2]
[320854378,1711637432703,-731.18,0.00039833,2]
[320854379,1711637432718,-731.18,0.00039843,2]
[320854380,1711637432728,-731.18,0.00039854,2]
[320854381,1711637432738,-731.18,0.00039864,2]
[320854382,1711637432748,-731.18,0.00039875,2]
[320854383,1711637432758,-731.18,0.00039885,2]
[320854384,1711637432768,-731.18,0.00039896,2]
[320854385,1711637432778,-731.18,0.00039906,2]
[320854386,1711637432788,-731.18,0.00039916,2]
[320854387,1711637432797,-731.18,0.00039927,2]
[320854388,1711637432807,-731.18,0.00039937,2]
[320854389,1711637432816,-731.18,0.00039948,2]
[320854390,1711637432826,-731.18,0.00039958,2]
[320854391,1711637432835,-170.68,0.00039976,2]
[320854392,1711637432845,-166.79,0.00040174,2]
[320854393,1711637432854,-249.65614262,0.00040323,4]
[320854394,1711637432863,-2058.3146,0.00040432,2]
[320854395,1711637432872,-440.8388,0.00040432,2]
[320854396,1711637432881,-23793.0687,0.00040432,2]
[320854398,1711637432890,-10316.4634,0.00040432,2]
[320854400,1711637432899,-3037.1183,0.00040432,2]
[320854401,1711637432909,-150.0,0.00040441,2]
[320854403,1711637432918,-321.91678862,0.00040448,2]
[320854405,1711637432927,-236.97460967,0.00040448,12]
[320854407,1711637432936,-188.59881773,0.00040485,2]
[320854410,1711637432945,-1512.0,0.000405,2]
[320854412,1711637432955,-188.5988177,0.0004052,2]
[320854413,1711637432967,-6333.1555463,0.00040531,2]
[320854415,1711637432976,-500.0,0.00040531,31]
[320854417,1711637432985,-500.0,0.00040531,31]
[320854419,1711637432994,-370.04887238,0.00040531,31]
[320854421,1711637433003,-1000.0,0.00040532,2]
[320854423,1711637433012,-500.0,0.00040532,2]
[320854424,1711637433023,-460686.8668,0.00040532,2]
[320854425,1711637433033,-6202.0,0.00040548,10]
[320854426,1711637433042,-188.5988177,0.00040555,2]
[320854427,1711637433051,-756.08,0.00040585,2]
[320854428,1711637433060,-188.5988177,0.00040589,2]
[320854429,1711637433069,-500.0,0.000406,14]
[320854430,1711637433078,-180.62025724,0.00040617,2]
[320854431,1711637433087,-188.5988177,0.00040624,2]
[320854432,1711637433096,-152.37549219,0.00040624,9]
[320854433,1711637433105,-1679.08740472,0.00040624,2]
[320854434,1711637433115,-1747.76841612,0.00040625,32]
[320854435,1711637433123,-211.76893128,0.00040625,2]
[320854436,1711637433132,-1053.52550218,0.00040625,2]
[320854437,1711637433141,-161.02408066,0.00040626,2]
[320854438,1711637433150,-213.79909617,0.00040627,14]
[320854439,1711637433159,-174.72762634,0.0004063,2]
[320854440,1711637433168,-163.36064476,0.00040631,4]
[320854441,1711637433177,-358.72973936,0.00040631,31]
[320854442,1711637433186,-126686.83757646,0.00040632,2]
[320854443,1711637433433,-712.5,0.00040632,2]
[320854444,1711637433539,-10480.00010923,0.00040632,2]
[320854445,1711637433599,-7229.00988306,0.00040632,2]
[320854446,1711637433611,-7133.7,0.00040632,2]
[320854447,1711637433622,-720.48790123,0.00040632,2]
[320854448,1711637433644,-753.08526197,0.00040632,2]
[320854449,1711637433655,-718.2001506,0.00040632,2]
[320854450,1711637433731,-9924.45501745,0.00040632,2]
[320854451,1711637433740,-734.6562,0.00040632,2]
[320854452,1711637433749,-28511.93161419,0.00040632,2]
[320854488,1711637438271,-164.25883869,0.00038651,2]
[320854490,1711637438282,-53216.49728581,0.00040632,2]
[320854492,1711637438292,-659.0,0.00040697,15]
[320854494,1711637438302,-1100.0,0.000407,14]
[320854496,1711637438312,-600.0,0.000407,120]
[320854498,1711637438321,-607.0,0.00040702,15]
[320854500,1711637438331,-659.0,0.00040707,15]
[320854502,1711637438341,-607.0,0.00040712,15]
[320854504,1711637438351,-200.0,0.00040714,7]
[320854506,1711637438362,-180.62025724,0.00040715,2]
[320854508,1711637438372,-659.0,0.00040717,15]
[320854509,1711637438381,-607.0,0.00040722,15]
[320854510,1711637438392,-341.82175375,0.00040724,30]
[320854511,1711637438403,-286.90950873,0.00040724,4]
[320854512,1711637438414,-363.7661971,0.00040724,4]
[320854513,1711637438425,-9697.79913361,0.00040725,2]
[320854514,1711637438447,-23378.85933293,0.00040725,2]
[320854515,1711637438466,-1796.795,0.00040725,2]
[320854516,1711637438479,-2479.05299748,0.00040725,2]
[320854532,1711637440243,-769.5095005,0.00040725,2]
[320854534,1711637440258,-1359.22700567,0.00040725,2]
[320854536,1711637440270,-4021.45718659,0.00040725,2]
[320854538,1711637440281,-8707.1709665,0.00040725,2]
[320854542,1711637440306,-3362.0,0.00040725,2]
[320854544,1711637440317,-854.9999999,0.00040725,2]
[320854627,1711637442956,-164.25883869,0.00040625,2]
[320854628,1711637442965,-9416.24116131,0.00040725,2]
[320854629,1711637443015,-671.99291857,0.00040725,2]
[320854632,1711637443032,-367.31,0.00040725,2]
[320854633,1711637443045,-259.41654144,0.00040725,2]
[320854634,1711637443056,-326.02721356,0.00040725,2]
[320854636,1711637443087,-5610.39032302,0.00040725,2]
[320854637,1711637443156,-429.51909111,0.00040725,2]
[320854638,1711637443169,-1429.24692407,0.00040725,2]
[320854639,1711637443225,-5686.82102777,0.00040725,2]
[320854640,1711637443237,-309.12639055,0.00040725,2]
[320854641,1711637443249,-287.38590381,0.00040725,2]
[320854642,1711637443260,-6590.52942331,0.00040725,2]
[320854643,1711637443272,-3051.08526823,0.00040725,2]
[320854644,1711637443281,-5972.94309256,0.00040725,2]
[320854707,1711637444107,-3398.71709217,0.00030543,4]
[320854708,1711637444116,-2647.75290783,0.00040725,2]
[320854709,1711637444173,-5876.38153901,0.00040725,2]
[320854710,1711637444185,-6.44610089,0.00040725,2]
[320854711,1711637444194,-5981.93304843,0.00040725,2]
[320854715,1711637444375,-18.06695157,0.00040725,2]
[320854716,1711637444384,-1002.05757425,0.00040725,2]
[320854718,1711637444393,-10291.04425487,0.00040725,2]
[320854720,1711637444402,-14192.29954513,0.00040725,2]
[320854722,1711637444411,-546.34412289,0.00040725,2]
[320854724,1711637444420,-150.0,0.00040725,2]
[320854726,1711637444429,-633.63047705,0.00040725,2]
[320854728,1711637444438,-607.7365019,0.00040725,2]
[320854730,1711637444447,-208.38459219,0.00040725,2]
[320854732,1711637444456,-148858.97900722,0.00040725,2]
[320854734,1711637444465,-171451.92976543,0.00040725,7]
[320854736,1711637444478,-4046.81105324,0.00040725,7]
[320854741,1711637444515,-4974.05581173,0.00040725,7]
[320854769,1711637446349,-1713.2326613,0.00040724,4]
[320854770,1711637446358,-80665.57276239,0.00040725,7]
[320854771,1711637446369,-435.93918615,0.00040725,2]
[320854772,1711637446379,-1035.10186557,0.00040725,2]
[320854773,1711637446388,-20614.81329606,0.00040725,2]
[320854774,1711637446398,-2500.0,0.00040725,2]
[320854775,1711637446407,-562.13440082,0.00040725,2]
[320854776,1711637446417,-2309.16247813,0.00040725,2]
[320854777,1711637446427,-26972.57132829,0.00040725,2]
[320854778,1711637446437,-233.53501799,0.00040725,2]
[320854779,1711637446446,-1594.50540444,0.00040725,2]
[320854780,1711637446457,-522.94360278,0.00040725,2]
[320854781,1711637446466,-378816.61600706,0.00040725,2]
[320854782,1711637446480,-1430.26370688,0.00040725,2]
[320854783,1711637446593,-442.55742415,0.00040725,2]
[320854784,1711637446606,-10596.59176834,0.00040725,2]
[320854792,1711637475751,2096.21160994,0.00040725,120]
[320854793,1711637477018,691.27208973,0.00040725,30]
[320854794,1711637479507,158.34642619,0.00040725,30]
[320854795,1711637480476,2584.51921122,0.00040725,120]
[320854796,1711637483835,1887.93086158,0.00040725,120]
[320854797,1711637484921,828.15340145,0.00040725,30]
[320854798,1711637490076,1157.33526674,0.00040725,30]
[320854799,1711637491408,317.465642,0.00040725,30]
[320854800,1711637492121,963.8690911,0.00040725,30]
[320854801,1711637494918,606.11167456,0.00040725,120]
[320854802,1711637504389,312.8155782,0.00040725,120]
[320854803,1711637504969,960.51656936,0.00040725,30]
[320854804,1711637507952,2293.54112594,0.00040725,120]
[320854805,1711637509354,1801.2610592,0.00040725,120]
[320854807,1711637517449,644.5309284,0.00040725,120]
[320854808,1711637522679,2352.21541103,0.00040725,30]
[320854809,1711637526868,1089.3495209,0.00040725,120]
[320854810,1711637529005,208.75802591,0.00040725,120]
[320854811,1711637532896,152.0050734,0.00040725,60]
[320854812,1711637537378,324.37873581,0.00040725,120]
[320854813,1711637558050,476.52859862,0.00040725,30]
[320854814,1711637603715,286.89511809,0.00040725,30]
[320854815,1711637610512,2916.35185377,0.00040725,120]
[320854816,1711637612240,1238.19667129,0.00040725,120]
[320854817,1711637614822,502.49978135,0.00040725,120]
[320854818,1711637620146,419.65196286,0.00040725,30]
[320854819,1711637624309,1959.09843545,0.00040704,120]
[320854820,1711637625744,208.13245881,0.00040704,120]
[320854821,1711637627270,206.63001168,0.00040704,120]
[320854822,1711637628559,536.63540422,0.00040704,120]
[320854823,1711637630252,187.00311609,0.00040704,30]
[320854824,1711637634463,619.81083243,0.00040704,120]
[320854825,1711637634929,968.67179859,0.00040704,120]
[320854826,1711637642222,11490.67432974,0.00018,2]
[320854827,1711637642250,52035.16271746,0.00018,2]
[320854828,1711637645220,283.89983839,0.00040704,30]
[320854829,1711637647448,152.30107004,0.00040704,36]
[320854830,1711637649076,152.30107004,0.00040704,36]
[320854831,1711637650139,152.30107004,0.00040704,36]
[320854832,1711637650499,3064.30838123,0.00040704,30]
[320854833,1711637669698,927.14876232,0.00040704,120]
[320854834,1711637672297,910.19032944,0.00040704,120]
[320854835,1711637673492,264.20735161,0.00040704,120]
[320854836,1711637674143,526.73930238,0.00040704,30]
[320854837,1711637675001,1649.8893283,0.00040704,120]
[320854838,1711637675036,2273.75406435,0.00040704,120]
[320854839,1711637675596,855.5207487,0.00040704,120]
[320854840,1711637675865,392.84850269,0.00040704,30]
[320854841,1711637675939,454.91884667,0.00040704,120]
[320854842,1711637675974,445.33108102,0.00040704,30]
[320854843,1711637676617,210.36744421,0.00040704,120]
[320854844,1711637676834,2197.78028535,0.00040704,30]
[320854845,1711637677294,1556.91501252,0.00040704,120]
[320854846,1711637678406,360.29566423,0.00040704,30]
[320854847,1711637679982,756.0,0.00040704,120]
[320854848,1711637680402,844.24394866,0.00040704,120]
[320854849,1711637680613,448.58320078,0.00040704,120]
[320854851,1711637710593,-270.3722035,0.0003044,4]
[320854852,1711637710614,-1025.59354118,0.00030441,4]
[320854853,1711637710635,-300.0,0.00030443,2]
[320854854,1711637710655,-404.03425532,0.00030543,4]
[320854855,1711637711716,-1099.6097329,0.00030543,4]
[320854856,1711637711738,-900.3902671,0.0003111,2]
[320854857,1711637719099,-2316.0,0.0003111,2]
[320854858,1711637777831,-3900.0,0.00035,7]
[320854859,1711637777865,-3129.0,0.0004,7]
[320854860,1711637806813,-1250.0,0.00029,3]
[320854861,1711637806834,-150.0,0.00034999,3]
[320854862,1711637806855,-270.3722035,0.00038498,4]
[320854863,1711637806875,-210.0,0.00038499,4]
[320854864,1711637806900,-210.0,0.00038499,5]
[320854865,1711637806921,-357.83,0.00039467,15]
[320854866,1711637806941,-4580.7977965,0.0004,7]
[320854867,1711637837996,-1250.0,0.00029,3]
[320854868,1711637943242,-1300.0,0.00031,3]
[320854869,1711637997348,-1044.3989323,0.00030439,2]
[320854870,1711637997373,-300.0,0.0003044,2]
[320854873,1711638173385,300.0,0.00030339,2]
[320854874,1711638243011,152.30107003,0.00040711,36]
[320854875,1711638244525,152.30107003,0.00040711,36]
[320854876,1711638246443,152.30107003,0.00040711,36]
[320854877,1711638285442,270.3722035,0.00031,4]
[320854878,1711638317426,228.78058121,0.00040711,30]
[320854881,1711638567223,-259.20950796,0.00031007,4]
[320854893,1711638632438,-393.24214755,0.00031009,4]
[320854894,1711638632448,-171.98510069,0.0003101,2]
[320854895,1711638632461,-475.27811161,0.0003111,2]
[320854896,1711638632507,-3055.41535707,0.0003111,2]
[320854897,1711638632517,-1350.0,0.00033,3]
[320854898,1711638632527,-364.514337,0.00034824,2]
[320854899,1711638632536,-150.0,0.00034999,2]
[320854900,1711638632547,-150.0,0.00034999,3]
[320854901,1711638632559,-1400.0,0.00035,3]
[320854902,1711638632569,-233.0,0.00035,2]
[320854903,1711638632580,-4132.58,0.00035,2]
[320854904,1711638632591,-499.99,0.00035,2]
[320854905,1711638632601,-753.12,0.00036111,2]
[320854906,1711638632611,-150.99,0.00036111,2]
[320854907,1711638632621,-1450.0,0.00037,3]
[320854908,1711638632631,-250.0,0.00037896,112]
[320854909,1711638632641,-250.0,0.00037985,2]
[320854910,1711638632651,-346.85,0.00037987,2]
[320854911,1711638632660,-172.37,0.00038021,120]
[320854912,1711638632670,-507.55,0.00038021,2]
[320854913,1711638632680,-357.83,0.00038102,15]
[320854914,1711638632690,-250.0,0.00038104,2]
[320854915,1711638632700,-150.0,0.000382,2]
[320854916,1711638632713,-2415.49,0.00038254,2]
[320854917,1711638632724,-529.36,0.00038323,2]
[320854918,1711638632734,-200.0,0.00038325,2]
[320854919,1711638632744,-200.0,0.00038328,2]
[320854921,1711638632754,-1000.0,0.00038335,2]
[320854923,1711638632764,-412.36,0.00038352,2]
[320854925,1711638632774,-753.12,0.00038374,2]
[320854927,1711638632785,-150.2,0.00038392,2]
[320854929,1711638632795,-500.0,0.00038454,2]
[320854931,1711638632810,-173.6,0.00038475,120]
[320854932,1711638632828,-210.0,0.00038499,4]
[320854933,1711638632838,-210.0,0.00038499,5]
[320854934,1711638632849,-253.316563,0.00038904,14]
[320854935,1711638632859,-1500.0,0.00039,3]
[320854936,1711638632868,-155.13,0.00039077,120]
[320854937,1711638632877,-3933.26,0.00039329,2]
[320854938,1711638632887,-34.61434693,0.00039475,2]
[320854946,1711638632992,-115.58565307,0.00039475,2]
[320854948,1711638633002,-168.68,0.0003955,2]
[320854950,1711638633012,-1513.27358811,0.000397,2]
[320854952,1711638633023,-253.316563,0.00039726,14]
[320854954,1711638633033,-213.5609364,0.00039927,30]
[320854957,1711638633046,-183.93288089,0.00039927,30]
[320854959,1711638633056,-331.01956915,0.0004,7]